fUSD/lending_fUSD_20250107
["ID","MTS","AMOUNT","RATE_DAILY","PERIOD"]
[348065074,1736290267894,-552.23,0.00010647,2]
[348065075,1736290267903,-4588.54,0.00010647,2]
[348065076,1736290267913,-500.0,0.00010647,2]
[348065077,1736290267923,-2008.34,0.00010647,2]
[348065078,1736290267932,-624.15260481,0.00010647,2]
[348065079,1736290267942,-627.12,0.00010647,2]
[348065080,1736290267951,-500.0,0.00010647,2]
[348065081,1736290267961,-3709.51,0.00010647,2]
[348065082,1736290267971,-500.0,0.00010647,2]
[348065083,1736290267981,-1523.36,0.00010647,2]
[348065084,1736290267990,-551.69,0.00010647,2]
[348065085,1736290268000,-564.59,0.00010647,2]
[348065086,1736290268010,-1398.98,0.00010647,2]
[348065087,1736290268019,-500.0,0.00010647,2]
[348065088,1736290268029,-500.0,0.00010647,2]
[348065089,1736290268038,-500.0,0.00010647,2]
[348065090,1736290268048,-609.94,0.00010647,2]
[348065091,1736290268058,-768.22,0.00010647,2]
[348065092,1736290268068,-1607.22,0.00010647,2]
[348065093,1736290268079,-500.0,0.00010647,2]
[348065094,1736290268089,-520.1,0.00010647,2]
[348065095,1736290268099,-1834.97,0.00010647,2]
[348065096,1736290268109,-3256.31,0.00010647,2]
[348065097,1736290268119,-500.0,0.00010647,2]
[348065098,1736290268129,-500.0,0.00010647,2]
[348065099,1736290268138,-578.09,0.00010647,2]
[348065100,1736290268149,-1189.26,0.00010647,2]
[348065101,1736290268159,-537.41,0.00010647,2]
[348065102,1736290268168,-946.0356294,0.00010667,2]
[348065103,1736290268178,-500.0,0.00010708,2]
[348065104,1736290268187,-7962.03015883,0.00010736,2]
[348065105,1736290268198,-797.72,0.00010781,2]
[348065106,1736290268207,-3528.04,0.00010781,2]
[348065107,1736290268216,-1276.55,0.00010781,2]
[348065108,1736290268226,-3057.55,0.00010781,2]
[348065109,1736290268236,-7935.21,0.00010781,2]
[348065110,1736290268246,-920.79,0.00010781,2]
[348065111,1736290268256,-1588.01,0.00010781,2]
[348065112,1736290268266,-436.00355151,0.00010781,2]
[348065113,1736290268281,-369.56196663,0.00010781,2]
[348065114,1736290268298,-1963.58448186,0.00010781,2]
[348065115,1736290268309,-500.0,0.00010781,2]
[348065116,1736290268491,-5146.02,0.00010781,2]
[348065117,1736290268502,-1860.59,0.00010781,2]
[348065118,1736290268512,-500.0,0.00010781,2]
[348065119,1736290268522,-2177.16,0.00010781,2]
[348065120,1736290268532,-1293.55,0.00010781,2]
[348065121,1736290268542,-4623.61,0.00010781,2]
[348065122,1736290268551,-2142.04,0.00010781,2]
[348065123,1736290268560,-1965.94,0.00010781,2]
[348065124,1736290268570,-2185.97,0.00010781,2]
[348065125,1736290268580,-946.04,0.00010781,2]
[348065126,1736290268590,-3004.29,0.00010781,2]
[348065127,1736290268600,-500.0,0.00010781,2]
[348065128,1736290268609,-1147.28,0.00010781,2]
[348065129,1736290268619,-1015.36,0.00010781,2]
[348065130,1736290268630,-500.0,0.00010781,2]
[348065131,1736290268639,-1034.35,0.00010781,2]
[348065132,1736290268649,-564.54,0.00010781,2]
[348065133,1736290268658,-2088.64,0.00010781,2]
[348065134,1736290268668,-4000.0,0.000108,3]
[348065135,1736290268677,-4683.38,0.0001082,2]
[348065136,1736290268687,-500.0,0.00010824,2]
[348065137,1736290268697,-500.0,0.00010824,2]
[348065138,1736290268707,-500.0,0.00010824,2]
[348065139,1736290268717,-505.84,0.00010824,2]
[348065140,1736290268726,-500.0,0.00010824,2]
[348065141,1736290268735,-500.0,0.00010824,2]
[348065142,1736290268745,-542.87,0.00010824,2]
[348065143,1736290268757,-500.0,0.00010824,2]
[348065144,1736290268766,-500.0,0.00010824,2]
[348065145,1736290268777,-521.74836662,0.00010824,2]
[348065146,1736290268787,-500.0,0.00010824,2]
[348065147,1736290268797,-500.0,0.00010824,2]
[348065148,1736290268806,-538.95,0.00010824,2]
[348065149,1736290268816,-500.0,0.00010824,2]
[348065150,1736290268825,-360.74149643,0.00010824,2]
[348065151,1736290268834,-500.0,0.00010824,2]
[348065152,1736290268844,-636.56,0.00010824,2]
[348065153,1736290268854,-627.49,0.00010824,2]
[348065154,1736290268864,-717.74,0.00010824,2]
[348065155,1736290268874,-500.0,0.00010824,2]
[348065156,1736290268883,-500.0,0.00010824,2]
[348065157,1736290268892,-918.23,0.00010825,2]
[348065158,1736290268902,-500.0,0.00010825,2]
[348065159,1736290268911,-546.10127182,0.00010825,2]
[348065160,1736290268921,-1236.68,0.00010825,2]
[348065161,1736290268931,-889.86,0.00010825,2]
[348065162,1736290268943,-1169.42,0.00010825,2]
[348065163,1736290268953,-638.18,0.00010825,2]
[348065164,1736290268962,-526.57,0.00010825,2]
[348065165,1736290268972,-621.31,0.00010825,2]
[348065166,1736290268981,-500.0,0.00010825,2]
[348065167,1736290268990,-527.28,0.00010825,2]
[348065168,1736290269000,-953.02,0.00010825,2]
[348065169,1736290269009,-500.0,0.00010825,2]
[348065170,1736290269019,-500.44,0.00010825,2]
[348065171,1736290269028,-880.01,0.00010825,2]
[348065172,1736290269039,-500.0,0.00010825,2]
[348065173,1736290269049,-500.0,0.00010825,2]
[348065174,1736290269059,-500.0,0.00010825,2]
[348065175,1736290269068,-989.14,0.00010825,2]
[348065176,1736290269077,-1041.11,0.00010825,2]
[348065177,1736290269087,-619.42,0.00010825,2]
[348065178,1736290269096,-500.0,0.00010825,2]
[348065179,1736290269106,-500.0,0.00010825,2]
[348065180,1736290269115,-1191.41,0.00010825,2]
[348065181,1736290269124,-586.75,0.00010825,2]
[348065182,1736290269134,-1060.23,0.00010825,2]
[348065183,1736290269144,-500.0,0.00010825,2]
[348065184,1736290269154,-500.0,0.00010825,2]
[348065185,1736290269163,-660.8,0.00010825,2]
[348065186,1736290269172,-502.09,0.00010825,2]
[348065187,1736290269182,-954.95,0.00010825,2]
[348065188,1736290269191,-500.0,0.00010825,2]
[348065189,1736290269200,-512.5,0.00010825,2]
[348065190,1736290269210,-1110.2,0.00010825,2]
[348065191,1736290269219,-556.46,0.00010825,2]
[348065192,1736290269228,-689.24,0.00010825,2]
[348065193,1736290269238,-508.82,0.00010825,2]
[348065194,1736290269247,-762.82,0.00010825,2]
[348065195,1736290269258,-500.0,0.00010825,2]
[348065196,1736290269267,-500.0,0.00010825,2]
[348065197,1736290269276,-1030.35,0.00010825,2]
[348065198,1736290269285,-1081.71,0.00010825,2]
[348065199,1736290269295,-605.58,0.00010825,2]
[348065200,1736290269304,-1178.59,0.00010825,2]
[348065201,1736290269313,-500.0,0.00010825,2]
[348065202,1736290269322,-500.0,0.00010825,2]
[348065203,1736290269331,-500.0,0.00010825,2]
[348065204,1736290269340,-1012.53,0.00010825,2]
[348065205,1736290269352,-1097.58,0.00010825,2]
[348065206,1736290269363,-1137.44,0.00010825,2]
[348065207,1736290269372,-702.02,0.00010825,2]
[348065208,1736290269381,-701.45,0.00010825,2]
[348065209,1736290269390,-500.0,0.00010825,2]
[348065210,1736290269401,-962.96,0.00010825,2]
[348065211,1736290269410,-535.53,0.00010825,2]
[348065212,1736290269420,-923.41,0.00010825,2]
[348065213,1736290269429,-687.69,0.00010825,2]
[348065214,1736290269438,-1097.97,0.00010825,2]
[348065215,1736290269447,-981.83,0.00010825,2]
[348065216,1736290269456,-735.48,0.00010825,2]
[348065217,1736290269466,-1016.11,0.00010825,2]
[348065218,1736290269475,-1247.62,0.00010825,2]
[348065219,1736290269484,-701.64,0.00010825,2]
[348065220,1736290269493,-1347.69,0.00010825,2]
[348065221,1736290269503,-1306.47,0.00010825,2]
[348065222,1736290269512,-1214.38,0.00010825,2]
[348065223,1736290269523,-611.81,0.00010825,2]
[348065224,1736290269533,-815.66,0.00010825,2]
[348065225,1736290269542,-526.7,0.00010825,2]
[348065226,1736290269552,-923.53,0.00010825,2]
[348065227,1736290269562,-500.0,0.00010825,2]
[348065228,1736290269572,-716.03,0.00010825,2]
[348065229,1736290269582,-500.0,0.00010825,2]
[348065230,1736290269591,-151.5,0.00010836,2]
[348065231,1736290269601,-154.36322553,0.00010882,2]
[348065232,1736290269611,-1976.46,0.00010883,2]
[348065233,1736290269620,-1990.46,0.00010883,2]
[348065234,1736290269630,-3103.77,0.00010883,2]
[348065235,1736290269640,-1629.53,0.00010883,2]
[348065236,1736290269649,-4968.16,0.00010883,2]
[348065237,1736290269659,-2271.31,0.00010883,2]
[348065238,1736290269668,-3568.89,0.00010883,2]
[348065239,1736290269678,-2074.43,0.00010883,2]
[348065240,1736290269687,-500.0,0.00010883,2]
[348065241,1736290269697,-2137.71,0.00010883,2]
[348065242,1736290269706,-844.52,0.00010883,2]
[348065243,1736290269715,-540.19,0.00010883,2]
[348065244,1736290269724,-500.0,0.00010883,2]
[348065245,1736290269733,-500.0,0.00010883,2]
[348065246,1736290269741,-1134.16,0.00010883,2]
[348065247,1736290269751,-500.0,0.00010883,2]
[348065248,1736290269760,-931.39,0.00010883,2]
[348065249,1736290269769,-500.0,0.00010883,2]
[348065250,1736290269778,-1148.48,0.00010883,2]
[348065251,1736290269787,-3650.94,0.00010883,2]
[348065252,1736290269796,-744.23,0.00010883,2]
[348065253,1736290269806,-644.52,0.00010883,2]
[348065254,1736290269815,-1042.38,0.00010883,2]
[348065255,1736290269825,-685.5,0.00010883,2]
[348065256,1736290269834,-500.0,0.00010883,2]
[348065257,1736290269843,-702.86,0.00010883,2]
[348065258,1736290269852,-1956.11,0.00010883,2]
[348065259,1736290269862,-500.0,0.00010883,2]
[348065260,1736290269871,-1214.17,0.00010883,2]
[348065261,1736290269881,-782.25,0.00010883,2]
[348065262,1736290269891,-1257.82,0.00010883,2]
[348065263,1736290269900,-500.0,0.00010883,2]
[348065264,1736290269909,-1351.8,0.00010883,2]
[348065265,1736290269919,-1450.67,0.00010883,2]
[348065266,1736290269928,-500.0,0.00010883,2]
[348065267,1736290269937,-577.82,0.00010883,2]
[348065268,1736290269946,-1502.49,0.00010883,2]
[348065269,1736290269955,-500.0,0.00010883,2]
[348065270,1736290269964,-940.74,0.00010883,2]
[348065271,1736290269973,-500.0,0.00010883,2]
[348065272,1736290269983,-502.88096776,0.00010883,2]
[348065273,1736290269996,-175.75903224,0.00010883,2]
[348065274,1736290270005,-500.0,0.00010883,2]
[348065275,1736290270015,-500.0,0.00010883,2]
[348065276,1736290270024,-1722.9,0.00010883,2]
[348065277,1736290270034,-1017.71,0.00010883,2]
[348065278,1736290270046,-986.89,0.00010883,2]
[348065279,1736290270057,-449.74096776,0.00010883,2]
[348065280,1736290270070,-1043.15903224,0.00010883,2]
[348065281,1736290270080,-2039.88,0.00010883,2]
[348065282,1736290270089,-2144.34,0.00010883,2]
[348065283,1736290270098,-448.19484964,0.00010883,2]
[348065286,1736290393078,2000.0,0.0002257,120]
[348065287,1736290479392,471.43,8.219e-05,2]
[348065289,1736290745249,1000.0,0.00023014,120]
[348065290,1736291172579,500.0,0.00023,120]
[348065291,1736291185216,501.0,0.00023,120]
[348065292,1736291213099,-271.8143841,8.219e-05,2]
[348065293,1736291235501,1817.6379688,0.00023013,120]
[348065296,1736291432488,-250.0,8.393e-05,2]
[348065297,1736291432499,-2175.84,8.445e-05,2]
[348065298,1736291432508,-1000.0,8.47e-05,2]
[348065299,1736291432517,-250.0,8.622e-05,2]
[348065300,1736291432527,-24.16,8.904e-05,2]
[348065301,1736291432538,-9771.35897814,8.904e-05,2]
[348065302,1736291432548,-2500.0,8.904e-05,2]
[348065303,1736291432558,-2500.0,8.904e-05,2]
[348065304,1736291432567,-150.0,9.003e-05,2]
[348065305,1736291432577,-6444.07,9.004e-05,2]
[348065306,1736291432588,-852.98,9.004e-05,2]
[348065307,1736291432598,-1697.6,9.004e-05,2]
[348065308,1736291432608,-809.6,9.004e-05,2]
[348065309,1736291432618,-3197.28,9.004e-05,2]
[348065310,1736291432628,-1321.27,9.004e-05,2]
[348065311,1736291432638,-569.31,9.137e-05,2]
[348065312,1736291432648,-500.0,9.137e-05,2]
[348065313,1736291432657,-500.0,9.137e-05,2]
[348065314,1736291432667,-510.51,9.137e-05,2]
[348065315,1736291432678,-500.0,9.137e-05,2]
[348065316,1736291432687,-567.8,9.137e-05,2]
[348065317,1736291432697,-500.0,9.137e-05,2]
[348065318,1736291432712,-500.0,9.137e-05,2]
[348065319,1736291432722,-500.0,9.137e-05,2]
[348065320,1736291432732,-500.0,9.137e-05,2]
[348065321,1736291432742,-500.0,9.137e-05,2]
[348065322,1736291432754,-543.28,9.137e-05,2]
[348065323,1736291432764,-694.1,9.137e-05,2]
[348065324,1736291432773,-500.0,9.137e-05,2]
[348065325,1736291432783,-500.0,9.137e-05,2]
[348065326,1736291432793,-500.0,9.137e-05,2]
[348065327,1736291432802,-500.0,9.137e-05,2]
[348065328,1736291432812,-500.0,9.137e-05,2]
[348065329,1736291432821,-710.54,9.137e-05,2]
[348065330,1736291432831,-500.0,9.137e-05,2]
[348065331,1736291432840,-500.0,9.137e-05,2]
[348065332,1736291432850,-500.0,9.137e-05,2]
[348065333,1736291432860,-500.0,9.137e-05,2]
[348065334,1736291432870,-507.5,9.137e-05,2]
[348065335,1736291432880,-1118.63,9.137e-05,2]
[348065336,1736291432890,-500.0,9.137e-05,2]
[348065337,1736291432900,-1268.47,9.137e-05,2]
[348065338,1736291432910,-420.32161958,9.137e-05,2]
[348065339,1736291432919,-500.0,9.137e-05,2]
[348065340,1736291432932,-572.65,9.137e-05,2]
[348065341,1736291432942,-500.0,9.137e-05,2]
[348065342,1736291432952,-1163.36,9.137e-05,2]
[348065343,1736291432962,-500.0,9.137e-05,2]
[348065344,1736291432972,-574.87,9.137e-05,2]
[348065345,1736291432982,-500.0,9.137e-05,2]
[348065346,1736291432992,-500.0,9.137e-05,2]
[348065347,1736291433002,-500.0,9.137e-05,2]
[348065348,1736291433012,-511.89,9.137e-05,2]
[348065349,1736291433021,-580.04,9.137e-05,2]
[348065350,1736291433031,-500.0,9.137e-05,2]
[348065351,1736291433042,-524.23,9.137e-05,2]
[348065352,1736291433052,-500.0,9.137e-05,2]
[348065353,1736291433062,-500.0,9.137e-05,2]
[348065354,1736291433072,-500.0,9.137e-05,2]
[348065355,1736291433082,-500.0,9.137e-05,2]
[348065356,1736291433092,-500.0,9.137e-05,2]
[348065357,1736291433101,-500.0,9.137e-05,2]
[348065358,1736291433110,-500.0,9.137e-05,2]
[348065359,1736291433119,-524.11,9.137e-05,2]
[348065360,1736291433129,-500.0,9.137e-05,2]
[348065361,1736291433138,-500.0,9.137e-05,2]
[348065362,1736291433149,-500.0,9.137e-05,2]
[348065363,1736291433158,-500.0,9.137e-05,2]
[348065364,1736291433168,-500.0,9.137e-05,2]
[348065365,1736291433178,-500.0,9.137e-05,2]
[348065366,1736291433187,-1382.11,9.137e-05,2]
[348065367,1736291433197,-1141.93,9.137e-05,2]
[348065368,1736291433206,-500.0,9.137e-05,2]
[348065369,1736291433216,-500.0,9.137e-05,2]
[348065370,1736291433226,-500.0,9.137e-05,2]
[348065371,1736291433235,-536.6,9.137e-05,2]
[348065372,1736291433245,-1308.22,9.137e-05,2]
[348065373,1736291433255,-500.0,9.137e-05,2]
[348065374,1736291433264,-500.0,9.137e-05,2]
[348065375,1736291433274,-514.07,9.137e-05,2]
[348065376,1736291433284,-500.0,9.137e-05,2]
[348065377,1736291433293,-793.68,9.137e-05,2]
[348065378,1736291433303,-1547.92,9.137e-05,2]
[348065379,1736291433313,-1221.54,9.137e-05,2]
[348065380,1736291433322,-823.49,9.137e-05,2]
[348065381,1736291433332,-1090.91,9.137e-05,2]
[348065382,1736291433342,-500.0,9.137e-05,2]
[348065383,1736291433351,-500.0,9.137e-05,2]
[348065384,1736291433361,-500.0,9.137e-05,2]
[348065385,1736291433371,-500.0,9.137e-05,2]
[348065386,1736291433380,-500.0,9.137e-05,2]
[348065387,1736291433390,-500.0,9.137e-05,2]
[348065388,1736291433399,-500.0,9.137e-05,2]
[348065389,1736291433409,-500.0,9.137e-05,2]
[348065390,1736291433419,-2519.14,9.137e-05,2]
[348065391,1736291433428,-500.0,9.137e-05,2]
[348065392,1736291433438,-500.0,9.137e-05,2]
[348065393,1736291433447,-500.0,9.137e-05,2]
[348065394,1736291433457,-597.0,9.137e-05,2]
[348065395,1736291433466,-1767.45,9.137e-05,2]
[348065396,1736291433476,-500.0,9.137e-05,2]
[348065397,1736291433485,-4160.59,9.137e-05,2]
[348065398,1736291433494,-500.0,9.137e-05,2]
[348065399,1736291433504,-500.0,9.137e-05,2]
[348065400,1736291433513,-731.71,9.137e-05,2]
[348065401,1736291433523,-500.0,9.137e-05,2]
[348065402,1736291433532,-2854.86,9.137e-05,2]
[348065403,1736291433542,-500.0,9.137e-05,2]
[348065404,1736291433551,-504.88,9.137e-05,2]
[348065405,1736291433561,-500.0,9.137e-05,2]
[348065406,1736291433571,-500.0,9.137e-05,2]
[348065407,1736291433582,-820.69,9.137e-05,2]
[348065408,1736291433593,-500.0,9.137e-05,2]
[348065409,1736291433603,-500.0,9.137e-05,2]
[348065410,1736291433613,-639.8,9.137e-05,2]
[348065411,1736291433623,-1437.07,9.137e-05,2]
[348065412,1736291433633,-3515.53,9.137e-05,2]
[348065413,1736291433643,-551.91,9.137e-05,2]
[348065414,1736291433653,-892.28,9.137e-05,2]
[348065415,1736291433663,-16012.94654068,9.138e-05,2]
[348065416,1736291433675,-307.91,9.138e-05,2]
[348065417,1736291433685,-163.38,9.138e-05,2]
[348065418,1736291433695,-1014.65,9.138e-05,2]
[348065419,1736291433709,-11800.83,9.138e-05,2]
[348065420,1736291433719,-250.0,9.138e-05,2]
[348065421,1736291433730,-978.24,9.179e-05,2]
[348065422,1736291433739,-2318.63,9.179e-05,2]
[348065423,1736291433750,-6139.08,9.179e-05,2]
[348065424,1736291433759,-500.0,9.179e-05,2]
[348065425,1736291433769,-753.11,9.179e-05,2]
[348065426,1736291433778,-1464.41,9.179e-05,2]
[348065427,1736291433788,-889.09,9.179e-05,2]
[348065428,1736291433798,-2229.73,9.179e-05,2]
[348065429,1736291433808,-500.0,9.179e-05,2]
[348065430,1736291433818,-1778.53,9.179e-05,2]
[348065431,1736291433827,-500.0,9.179e-05,2]
[348065432,1736291433837,-3692.29,9.179e-05,2]
[348065433,1736291433847,-4019.55,9.179e-05,2]
[348065434,1736291433856,-1730.14,9.179e-05,2]
[348065435,1736291433866,-685.88,9.179e-05,2]
[348065436,1736291433876,-500.0,9.179e-05,2]
[348065437,1736291433885,-917.57,9.179e-05,2]
[348065438,1736291433895,-1045.55,9.179e-05,2]
[348065439,1736291433905,-2665.93,9.179e-05,2]
[348065440,1736291433915,-2191.07,9.179e-05,2]
[348065441,1736291433925,-500.0,9.179e-05,2]
[348065442,1736291433934,-500.0,9.179e-05,2]
[348065443,1736291433944,-902.13,9.179e-05,2]
[348065444,1736291433954,-1716.18,9.179e-05,2]
[348065445,1736291433964,-500.0,9.179e-05,2]
[348065446,1736291433974,-1608.14,9.179e-05,2]
[348065447,1736291433983,-500.0,9.179e-05,2]
[348065448,1736291433993,-846.29,9.179e-05,2]
[348065449,1736291434002,-650.88,9.179e-05,2]
[348065450,1736291434013,-1294.77,9.179e-05,2]
[348065451,1736291434023,-2687.7,9.179e-05,2]
[348065452,1736291434033,-500.0,9.179e-05,2]
[348065453,1736291434043,-500.0,9.18e-05,2]
[348065454,1736291434053,-157.71018865,9.18e-05,2]
[348065455,1736291434062,-500.0,9.18e-05,2]
[348065456,1736291434072,-500.0,9.18e-05,2]
[348065457,1736291434082,-500.0,9.18e-05,2]
[348065458,1736291434092,-500.0,9.18e-05,2]
[348065459,1736291434101,-500.0,9.18e-05,2]
[348065460,1736291434111,-500.0,9.18e-05,2]
[348065461,1736291434121,-500.0,9.18e-05,2]
[348065462,1736291434131,-500.0,9.18e-05,2]
[348065463,1736291434140,-500.0,9.18e-05,2]
[348065464,1736291434150,-500.0,9.18e-05,2]
[348065465,1736291434159,-500.0,9.18e-05,2]
[348065466,1736291434169,-500.0,9.18e-05,2]
[348065467,1736291434179,-500.0,9.18e-05,2]
[348065468,1736291434188,-500.0,9.18e-05,2]
[348065469,1736291434197,-500.0,9.18e-05,2]
[348065470,1736291434207,-500.0,9.18e-05,2]
[348065471,1736291434217,-500.0,9.18e-05,2]
[348065472,1736291434227,-500.0,9.18e-05,2]
[348065473,1736291434236,-500.0,9.18e-05,2]
[348065474,1736291434245,-500.0,9.18e-05,2]
[348065475,1736291434255,-250.40487931,9.18e-05,2]
[348065476,1736291434264,-500.0,9.18e-05,2]
[348065477,1736291434274,-500.0,9.18e-05,2]
[348065478,1736291434283,-500.0,9.18e-05,2]
[348065479,1736291434293,-500.0,9.18e-05,2]
[348065480,1736291434303,-500.0,9.18e-05,2]
[348065481,1736291434312,-500.0,9.18e-05,2]
[348065482,1736291434322,-500.0,9.18e-05,2]
[348065483,1736291434331,-500.0,9.18e-05,2]
[348065484,1736291434341,-500.0,9.18e-05,2]
[348065485,1736291434350,-500.0,9.18e-05,2]
[348065486,1736291434360,-500.0,9.18e-05,2]
[348065487,1736291434370,-500.0,9.18e-05,2]
[348065488,1736291434380,-500.0,9.18e-05,2]
[348065489,1736291434389,-500.0,9.18e-05,2]
[348065490,1736291434399,-500.0,9.18e-05,2]
[348065491,1736291434409,-500.0,9.18e-05,2]
[348065492,1736291434418,-500.0,9.18e-05,2]
[348065493,1736291434428,-500.0,9.18e-05,2]
[348065494,1736291434438,-500.0,9.18e-05,2]
[348065495,1736291434447,-500.0,9.18e-05,2]
[348065496,1736291434457,-500.0,9.18e-05,2]
[348065497,1736291434625,-500.0,9.18e-05,2]
[348065498,1736291434647,-500.0,9.18e-05,2]
[348065499,1736291434656,-500.0,9.18e-05,2]
[348065500,1736291434666,-500.0,9.18e-05,2]
[348065501,1736291434675,-500.0,9.18e-05,2]
[348065502,1736291434684,-500.0,9.18e-05,2]
[348065503,1736291434692,-500.0,9.18e-05,2]
[348065504,1736291434702,-500.0,9.18e-05,2]
[348065505,1736291434714,-500.0,9.18e-05,2]
[348065506,1736291434723,-500.0,9.18e-05,7]
[348065507,1736291434732,-500.0,9.18e-05,2]
[348065508,1736291434740,-500.0,9.18e-05,2]
[348065509,1736291434751,-604.43,9.18e-05,2]
[348065510,1736291434760,-500.0,9.18e-05,2]
[348065511,1736291434769,-500.0,9.18e-05,2]
[348065512,1736291434779,-500.0,9.18e-05,2]
[348065513,1736291434787,-500.0,9.18e-05,2]
[348065514,1736291434796,-500.0,9.18e-05,2]
[348065515,1736291434805,-500.0,9.18e-05,2]
[348065516,1736291434815,-500.0,9.18e-05,2]
[348065517,1736291434824,-500.0,9.18e-05,2]
[348065518,1736291434833,-500.0,9.18e-05,2]
[348065519,1736291434842,-500.0,9.18e-05,2]
[348065520,1736291434851,-500.0,9.18e-05,2]
[348065521,1736291434860,-500.0,9.18e-05,2]
[348065522,1736291434870,-500.0,9.18e-05,2]
[348065523,1736291434879,-500.0,9.18e-05,2]
[348065524,1736291434889,-500.0,9.18e-05,2]
[348065525,1736291434898,-500.0,9.18e-05,2]
[348065526,1736291434908,-500.0,9.18e-05,2]
[348065527,1736291434918,-500.0,9.18e-05,2]
[348065528,1736291434928,-500.0,9.18e-05,2]
[348065529,1736291434938,-500.0,9.18e-05,2]
[348065530,1736291434947,-500.0,9.18e-05,2]
[348065531,1736291434957,-500.0,9.18e-05,2]
[348065532,1736291434967,-500.0,9.18e-05,2]
[348065533,1736291434977,-500.0,9.18e-05,2]
[348065534,1736291434986,-500.0,9.18e-05,2]
[348065535,1736291434995,-500.0,9.18e-05,2]
[348065536,1736291435005,-500.0,9.18e-05,2]
[348065537,1736291435014,-500.0,9.18e-05,2]
[348065538,1736291435024,-500.0,9.18e-05,2]
[348065539,1736291435033,-500.0,9.18e-05,2]
[348065540,1736291435043,-500.0,9.18e-05,2]
[348065541,1736291435052,-500.0,9.18e-05,2]
[348065542,1736291435061,-500.0,9.18e-05,2]
[348065543,1736291435071,-500.0,9.18e-05,2]
[348065544,1736291435080,-500.0,9.18e-05,2]
[348065545,1736291435089,-500.0,9.18e-05,2]
[348065546,1736291435099,-500.0,9.18e-05,2]
[348065547,1736291435108,-500.0,9.18e-05,2]
[348065548,1736291435117,-500.0,9.18e-05,2]
[348065549,1736291435126,-500.0,9.18e-05,2]
[348065550,1736291435135,-500.0,9.18e-05,2]
[348065551,1736291435145,-500.0,9.18e-05,2]
[348065552,1736291435155,-500.0,9.18e-05,2]
[348065553,1736291435164,-500.0,9.18e-05,2]
[348065554,1736291435173,-500.0,9.18e-05,2]
[348065555,1736291435183,-500.0,9.18e-05,2]
[348065556,1736291435193,-500.0,9.18e-05,2]
[348065557,1736291435202,-500.0,9.18e-05,2]
[348065558,1736291435211,-500.0,9.18e-05,2]
[348065559,1736291435220,-500.0,9.18e-05,2]
[348065560,1736291435230,-500.0,9.18e-05,2]
[348065561,1736291435239,-500.0,9.18e-05,2]
[348065562,1736291435248,-500.0,9.18e-05,2]
[348065563,1736291435257,-500.0,9.18e-05,2]
[348065564,1736291435266,-500.0,9.18e-05,2]
[348065565,1736291435275,-500.0,9.18e-05,2]
[348065566,1736291435285,-500.0,9.18e-05,2]
[348065567,1736291435294,-500.0,9.18e-05,2]
[348065568,1736291435303,-500.0,9.18e-05,2]
[348065569,1736291435312,-500.0,9.18e-05,2]
[348065570,1736291435322,-500.0,9.18e-05,2]
[348065571,1736291435331,-500.0,9.18e-05,2]
[348065572,1736291435340,-500.0,9.18e-05,2]
[348065573,1736291435349,-500.0,9.18e-05,2]
[348065574,1736291435359,-500.0,9.18e-05,2]
[348065575,1736291435368,-500.0,9.18e-05,2]
[348065576,1736291435378,-500.0,9.18e-05,2]
[348065577,1736291435387,-500.0,9.18e-05,2]
[348065578,1736291435396,-500.0,9.18e-05,2]